{"text_format":"1","workbook":"xlsx","n_sheets":4,"sheets":["Vendor Worksheet Instructions","Vendor Worksheet","Certification Instructions","Vendor Summary & Certification"],"not_rendered":{"charts":0,"images":2,"macros":1,"external_links":0,"defined_names":6,"comments":0,"pivot_tables":0},"unopened":[],"bounds":{"document_bytes":16777216,"sheet_cells":100000,"rows_first":2000,"rows_last":500,"rows_between":2000,"halvings":0,"cell_chars":16384,"cell_head_chars":4096},"cells_cut":0,"cells_raw":0,"read":"whole","date_system":"1900"}

{"sheet":"Vendor Worksheet Instructions","index":0,"n_rows":67,"n_cols":2,"rows_kept":67,"cut":false,"hidden":false,"merged":[[33,1,33,8],[29,1,29,8],[3,0,3,8],[23,1,23,8],[21,1,21,8],[31,0,32,8],[13,1,13,8],[35,1,35,8],[37,1,37,8],[66,0,66,8],[64,0,64,8],[39,1,39,8],[49,1,49,8],[51,1,51,8],[60,1,60,8],[56,1,56,8],[58,1,58,8],[62,1,62,8],[45,1,45,8],[52,1,52,8]]}
["SB 3 MINIMUM WAGE 2018 RATE ADJUSTMENT - North Bay Regional Center Negotiated Rates "]
["WORKSHEET INSTRUCTIONS "]
[]
["These instructions are for the Vendor Worksheet.  After you read these instructions, please go to the “Vendor Worksheet” tab to begin.  You will ONLY be able to fill-in and select from the shaded fields on this worksheet.  The information you submit on this worksheet will be reviewed by the Department of Developmental Services (Department).  If additional information is needed, the Department will contact you.  After the review, the Department will respond to your request accordingly."]
[]
["SECTION A:  PROGRAM INFORMATION"]
[]
["Row 1","Please enter the Service Provider Name."]
[]
["Row 2","Please enter the Vendor Number."]
[]
["Row 3","Please enter the three-digit Service Code."]
[]
["Row 4","Employers with 25 or less employees are required to pay the increased minimum wage of 10.50 per hour and Employers with 26 or more employees are required to pay the increased minimum wage of 11.00 per hour, both effective January 1, 2018.  Make selection to indicate that you employ either 25 or less employees or 26 or more employees in total, factoring in all locations and services.  However, only employees/hours worked delivering services under the vendor number/service code above can be included in this rate adjustment request.   Vendors that operate multiple services must submit separate rate adjustment requests for each service and must ensure there is no duplication of reported employment hours across different services.\n\n"]
[]
["Row 5","Please enter the Staffing Ratio."]
[]
["Row 6","Please enter the number of Enrolled Consumers for the vendor number entered in Row 2 only."]
[]
["Row 7","Please list all other vendor numbers and service codes for the service provider entered in Row 1."]
[]
["Row 8","Please enter the dates for the beginning and end of a review period of 3 consecutive months.  If you have been recently vendored and have less than 3 months of payroll and billing data, please enter the dates for an applicable review period of up to 3 months."]
[]
["Row 9","Please enter the current rate as established by the Department and select the Unit Type, either Daily or Hourly, from the drop-down list."]
[]
["Rows 10 & 11","Rate information will populate automatically here."]
[]
["Row 12","Select the Vendoring Regional Center from the drop-down list."]
[]
["Row 13-16","Select the User Regional Center(s), if applicable, from the drop-down list.  If you need to list additional user regional centers, please add rows by clicking as instructed on the designated button."]
[]
["SECTION B:  EMPLOYEE WAGE INFORMATION"]
[]
["Column A","Please enter the name or initials of the employed staff who were paid during the review period, followed by their position title.  For any employee/position who received two or more different hourly wages during the review period being reported, please list only the most current wage paid with the requested information in columns B through I.  If additional rows are needed, please click on the designated button.  PLEASE NOTE:  Only employees of the vendor number and service code listed above in Rows 2 and 3 above are to be listed in Section B: Employee Wage Information."]
[]
[null,"DO NOT include staff who are providing these services that are funded by another source, such as through a contract with a school district.  Also, DO NOT include wages paid to consumers while receiving these services or any worker who is paid through other sources such as contract funding. Additionally, DO NOT include staff hours that are spent with non-mobile consumers, these hours are reimbursed through the supplemental rate. "]
[]
["Column B","Please enter the Position Title of the Employee."]
[]
["Column C","Please enter the current Hourly Wage paid to the employee(s) reported during the Review Period."]
[]
["Columns D - G","Wage information will calculate automatically here."]
[]
["Column H","Please enter the Workers' Compensation Insurance Employer Rate as a percentage."]
[]
["Column I","Please enter your Total Unemployment Insurance contribution rate as a percentage, including the net Federal and State rates, and the Employment Training Tax.  (Refer to your Form DE-2088 that you receive from the State of California Employment Development Department (EDD) for your contribution rates for Unemployment Insurance and Employment Training Tax.) "]
[]
["Column J","Wage information will calculate automatically here."]
[]
["Column K","Please enter the actual Total Hours Worked During the Review Period by each of the reported employee(s)."]
[]
["Column L","The cost of the rate adjustment will calculate automatically here."]
[null,"If less than a 3 month period, Section A Row 8,  Department Staff will adjust the calculation as needed."]
[]
["SECTION C:  RATE ADJUSTMENT CALCULATION"]
[]
["Row 1","Total wages, payroll taxes, workers' compensation, and other mandated employer costs will calculate automatically here."]
[]
["Row 2","Total Number of Units of Services Billed to all Regional Centers during the 3 month period will calculate automatically here."]
[]
["Rows 3 - 9","Please select the individual regional center(s) billed in the Review Period and enter the total units billed in the Review Period for the selected regional center(s).  If you need to list additional regional centers, please click the designated button."]
[]
["Row 10","The rate change will calculate automatically here and populate Row 10 in Section A, Program Information."]
[]
["Please review ALL the information you have entered on the worksheet, and specifically rows 9 - 11 in Section A, and row 10 in Section C.  These rows should have calculated rate information based on the data you have entered.  If there is an error message in these rows, you may need to re-enter the information in Sections B, and/or C."]
[]
["Before submitting, please save your workbook using the vendor number in the title of the file.  Failure to do so results in the submission of an empty workbook."]

{"sheet":"Vendor Worksheet","index":1,"n_rows":135,"n_cols":13,"rows_kept":135,"cut":false,"hidden":false,"merged":[[12,3,12,6],[13,3,13,6],[14,3,14,6],[11,2,11,7],[4,2,4,7],[5,2,5,7],[6,2,6,7],[8,2,8,7],[9,2,9,7],[10,2,10,7],[7,2,7,7],[15,2,15,7],[16,2,16,7],[17,2,17,7],[25,2,28,2],[25,3,28,3],[25,4,28,4],[25,5,28,5],[25,6,28,6],[25,7,28,7],[18,2,18,7],[19,2,19,7],[25,8,28,8],[25,10,28,10],[25,11,28,11],[25,12,28,12],[27,1,28,1],[25,9,28,9]]}
["SB 3 MINIMUM WAGE 2018 RATE ADJUSTMENT - Negotiated Regional Center Rates"]
["Effective January 1, 2018 - California Minimum Wage Increases to $10.50 per hour for Service Providers Employing 25 or less Employees AND $11.00 for Service Providers Employing 26 or more Employees"]
[]
["SECTION A:  PROGRAM INFORMATION",null,"(You will ONLY be able to fill-in and select from the shaded fields on this worksheet)"]
[1,"Service Provider Name"]
[2,"Vendor Number"]
[3,"Service Code"]
[4,"Select 25 or Less OR 26 or More Employees from Drop Down:","25 or less"]
[5,"Staffing Ratio"]
[{"$f":"A9+1","v":6},"Number of Enrolled Consumers"]
[7,"Other Vendor Numbers and Services Codes"]
[8,"Review Period: (Enter Beginning & End)"]
[9,"Current Rate:",null,"Select Unit Type: ",null,null,null,"Daily"]
[10,"Rate Adjustment:",{"$f":"H78","v":{"$error":"#DIV/0!"}}]
[11,"New Rate:",{"$f":"C13+H78","v":{"$error":"#DIV/0!"}}]
[12,"Select Vendoring Regional Center from Drop Down Menu"]
[13,"Select User Regional Centers from Drop Down Menu"]
[{"$f":"A17+1","v":14},"Select User Regional Centers"]
[{"$f":"A18+1","v":15},"Select User Regional Centers"]
[{"$f":"A19+1","v":16},"Select User Regional Centers"]
[]
[]
[]
["SECTION B:  EMPLOYEE WAGE INFORMATION"]
[null,"A","B","C","D","E ","F","G","H","I","J","K","L"]
[null,"Name or Initials of Staff Employee(s)","Position Title","Current Hourly Wage","New Hourly Wage","Hourly Wage Change","Employer Social Security Tax @ 6.2%","Employer Medicare Tax @1.45%","Workers Compensation as a %","Unemploy. Insurance \nas a %","Wage Adjustment plus Mandated Payroll Costs","Hours Worked During \n3 Month Review Period","Cost of Rate Adjustment \n(3 Month Period)"]
[]
["Row","(Please See Instructions for Listing Employees Receiving more than One Wage)"]
["#"]
[1,"Staff 1",null,null,{"$f":"IF($C$8=\"25 or less\",IF(AND(D30>=10,D30<=10.49),10.5,0),IF($C$8=\"26 or more\",IF(AND(D30>=10.5,D30<=10.99),11,0),0))","v":0},{"$f":"IF(E30-D30>0,E30-D30,0)","v":0},{"$f":"F30*0.062","v":0},{"$f":"F30*0.0145","v":0},null,null,{"$f":"ROUND((SUM(F30+G30+H30)+(F30*I30)+(F30*J30)),2)","v":0},null,{"$f":"SUM(K30*L30)","v":0}]
[2,"Staff 2 ",null,null,{"$f":"IF($C$8=\"25 or less\",IF(AND(D31>=10,D31<=10.49),10.5,0),IF($C$8=\"26 or more\",IF(AND(D31>=10.5,D31<=10.99),11,0),0))","v":0},0,0,0,null,null,{"$f":"ROUND((SUM(F31+G31+H31)+(F31*I31)+(F31*J31)),2)","v":0},null,{"$f":"SUM(K31*L31)","v":0}]
[3,"Staff 3",null,null,0,0,0,0,null,null,0,null,0]
[4,"Staff 4",null,null,0,0,0,0,null,null,0,null,0]
[5,"Staff 5",null,null,0,{"$f":"IF(E34-D34>0,E34-D34,0)","v":0},{"$f":"F34*0.062","v":0},{"$f":"F34*0.0145","v":0},null,null,0,null,0]
[6,"Staff 6",null,null,0,0,0,0,null,null,0,null,0]
[7,"Staff 7",null,null,0,0,0,0,null,null,0,null,0]
[8,null,null,null,0,0,0,0,null,null,0,null,0]
[9,null,null,null,0,0,0,0,null,null,0,null,0]
[{"$f":"A38+1","v":10},null,null,null,0,0,0,0,null,null,0,null,0]
[11,null,null,null,0,{"$f":"IF(E40-D40>0,E40-D40,0)","v":0},{"$f":"F40*0.062","v":0},{"$f":"F40*0.0145","v":0},null,null,0,null,{"$f":"SUM(K40*L40)","v":0}]
[12,null,null,null,0,0,0,0,null,null,0,null,0]
[13,null,null,null,0,{"$f":"IF(E42-D42>0,E42-D42,0)","v":0},{"$f":"F42*0.062","v":0},{"$f":"F42*0.0145","v":0},null,null,0,null,{"$f":"SUM(K42*L42)","v":0}]
[14,null,null,null,0,0,0,0,null,null,0,null,0]
[15,null,null,null,0,{"$f":"IF(E44-D44>0,E44-D44,0)","v":0},{"$f":"F44*0.062","v":0},{"$f":"F44*0.0145","v":0},null,null,0,null,{"$f":"SUM(K44*L44)","v":0}]
[16,null,null,null,0,0,0,0,null,null,0,null,0]
[17,null,null,null,0,{"$f":"IF(E46-D46>0,E46-D46,0)","v":0},{"$f":"F46*0.062","v":0},{"$f":"F46*0.0145","v":0},null,null,0,null,{"$f":"SUM(K46*L46)","v":0}]
[18,null,null,null,0,0,0,0,null,null,0,null,0]
[19,null,null,null,0,{"$f":"IF(E48-D48>0,E48-D48,0)","v":0},{"$f":"F48*0.062","v":0},{"$f":"F48*0.0145","v":0},null,null,0,null,{"$f":"SUM(K48*L48)","v":0}]
[20,null,null,null,0,0,0,0,null,null,0,null,0]
[21,null,null,null,0,{"$f":"IF(E50-D50>0,E50-D50,0)","v":0},{"$f":"F50*0.062","v":0},{"$f":"F50*0.0145","v":0},null,null,0,null,{"$f":"SUM(K50*L50)","v":0}]
[22,null,null,null,0,0,0,0,null,null,0,null,0]
[23,null,null,null,0,{"$f":"IF(E52-D52>0,E52-D52,0)","v":0},{"$f":"F52*0.062","v":0},{"$f":"F52*0.0145","v":0},null,null,0,null,{"$f":"SUM(K52*L52)","v":0}]
[24,null,null,null,0,0,0,0,null,null,0,null,0]
[25,null,null,null,0,{"$f":"IF(E54-D54>0,E54-D54,0)","v":0},{"$f":"F54*0.062","v":0},{"$f":"F54*0.0145","v":0},null,null,0,null,{"$f":"SUM(K54*L54)","v":0}]
[26,null,null,null,0,0,0,0,null,null,0,null,0]
[27,null,null,null,0,{"$f":"IF(E56-D56>0,E56-D56,0)","v":0},{"$f":"F56*0.062","v":0},{"$f":"F56*0.0145","v":0},null,null,0,null,{"$f":"SUM(K56*L56)","v":0}]
[28,null,null,null,0,0,0,0,null,null,0,null,0]
[29,null,null,null,0,{"$f":"IF(E58-D58>0,E58-D58,0)","v":0},{"$f":"F58*0.062","v":0},{"$f":"F58*0.0145","v":0},null,null,0,null,{"$f":"SUM(K58*L58)","v":0}]
[{"$f":"A58+1","v":30},null,null,null,0,0,0,0,null,null,0,null,0]
[{"$f":"A59+1","v":31},null,null,null,0,0,0,0,null,null,0,null,0]
[" ",null,null,null,null,null,null,null,"Totals",null,{"$f":"SUM(K30:K60)","v":0},{"$f":"SUM(L30:L60)","v":0},0]
[null," "]
[]
[]
[]
[]
["SECTION C:  RATE ADJUSTMENT CALCULATION"]
[1,null,null,null,null,null,"Total Cost of the Minimum Wage Adjustment for the Review Period:",{"$f":"IF(M61>0,M61,\"0.0\")","v":"0.0"}]
[2,null,null,null,null,null,"Number of Units of Services Billed to all Regional Centers for the Review Period:",{"$f":"SUM(H71:H77)","v":0}]
[]
[3,"Select Regional Center from Drop Down Menu:",null,null,null,null,"Enter Total No. of Units for Review Period"]
[4,"Select Regional Center:",null,null,null,null,"Enter Total No. of Units for Review Period"]
[5,"Select Regional Center:",null,null,null,null,"Enter Total No. of Units for Review Period"]
[6,"Select Regional Center:",null,null,null,null,"Enter Total No. of Units for Review Period"]
[7,"Select Regional Center:",null,null,null,null,"Enter Total No. of Units for Review Period"]
[8,"Select Regional Center:",null,null,null,null,"Enter Total No. of Units for Review Period"]
[9,"Select Regional Center:",null,null,null,null,"Enter Total No. of Units for Review Period"]
[10,"Rate Change (Section C, Row 1: Total Cost of Minimum Wage Adjustment/Section C, Row 2: Units of Service Billed to all Regional Centers)",null,null,null,null,null,{"$f":"ROUND(H68/H69,2)","v":{"$error":"#DIV/0!"}}]
[]
[]
[]
[]
[]
[]
[]
[]
[]
[]
[]
[]
[]
[]
[]
[]
[]
[]
[]
[]
[]
[]
[]
[]
[]
[]
[]
[]
["25 or less"]
["26 or more"]
[]
["Daily","Daily"]
["Hourly","Hourly"]
["Monthly","Monthly"]
["Other","Other"]
[]
["ACRC","ACRC"]
["CVRC","CVRC"]
["ELARC","ELARC"]
["FDLRC","FDLRC"]
["FNRC","FNRC"]
["GGRC","GGRC"]
["HRC","HRC"]
["IRC","IRC"]
["KRC","KRC"]
["NBRC","NBRC"]
["NLACRC","NLACRC"]
["RCEB","RCEB"]
["RCOC","RCOC"]
["RCRC","RCRC"]
["SARC","SARC"]
["SCLARC","SCLARC"]
["SDRC","SDRC"]
["SGPRC","SGPRC"]
["TCRC","TCRC"]
["VMRC","VMRC"]
["WRC","WRC"]

{"sheet":"Certification Instructions","index":2,"n_rows":25,"n_cols":1,"rows_kept":25,"cut":false,"hidden":false,"merged":[[16,0,16,8],[3,0,3,8],[5,0,5,8],[7,0,7,8],[9,0,9,8],[13,0,13,8],[11,0,11,8],[18,0,18,8],[23,0,23,8],[22,0,22,8],[21,0,21,8],[27,0,27,8],[25,0,25,8],[24,0,24,8]]}
["SB 3 MINIMUM WAGE 2018 RATE ADJUSTMENT - Negotiated Regional Center Rates"]
["SUMMARY & CERTIFICATION INSTRUCTIONS "]
[]
["These instructions are for the Vendor Summary & Certification.   After you read these instructions, please go to the “Vendor Summary & Certification” tab.  Please review the Program Information and enter the service address associated with the information submitted on this workbook.  If your program has a different mailing address than the service address, please enter this information."]
[]
["Please enter the requested Contact Information for the individual responsible for completing this workbook.  This information will include Contact Name, Contact Phone Number, Email Address, and Executive Director/Owner."]
[]
["Please review the current rate, proposed rate change, and the proposed new rate, which are calculated based on the information you have entered on the worksheet.  If there is an error message in the rate information, go back and review the information in the worksheet. "]
[]
["We ask that you save this workbook using your vendor number and service code in the title of the file name.  For example, \"H12345 510.xlsm\", then email the workbook to the Department at \"vendor@nbrc.net” by hitting the “SUBMIT” button on the bottom of the Vendor Summary & Certification worksheet. If the workbook is not saved prior to hitting submit, the worksheet will be transmitted as a blank. Please contact the Department if you do not receive a confirmation email after submitting the workbook.  Also, if your email is NOT Outlook, the \"SUBMIT\" button will not work. If this applies to you, please save your workbook and send as an attachment to rateadjustrequest@dds.ca.gov using your email. Please ensure you submit a copy to the vendoring regional center and to keep copies for your records."]
[]
["PLEASE NOTE:  By clicking the “I AGREE” checkbox near the bottom of the “Vendor Summary & Certification” worksheet, you certify that the information provided to the Department is specific to payroll costs necessary to meet the requirements of the minimum wage increase effective January 1, 2018.  You additionally certify to the best of your knowledge and belief that the information submitted is true and correct, and subject to verification by all record keeping and audit processes, procedures, and guidelines under the Lanterman Act and Title 17 of the California Code of Regulations (CCR)."]
[]
["You must retain ALL backup documentation which supports the information being submitted in this workbook.  The backup information for the information provided on this workbook is subject to all record keeping and audit processes, procedures, and guidelines under the Lanterman Act and Title 17, CCR.  "]
[" "]
["EMAIL ADDRESS:"]
["vendor@nbrc.net"]
[]
["OR"]
[]
["MAILING ADDRESS:"]
["North Bay Regional Center"]
["PO Box 3360"]
["610 Airpark Rd."]
["Napa, CA 94558"]

{"sheet":"Vendor Summary & Certification","index":3,"n_rows":47,"n_cols":4,"rows_kept":47,"cut":false,"hidden":false,"merged":[[24,2,24,5],[15,2,15,5],[16,2,16,5],[17,2,17,5],[22,2,22,5],[23,2,23,5],[18,2,18,5],[5,2,5,5],[10,2,10,5],[11,2,11,5],[12,2,12,5],[13,2,13,5],[25,2,25,5],[32,0,37,8],[44,0,44,3],[43,4,43,6],[44,5,44,7],[41,0,41,8]]}
["SB 3 MINIMUM WAGE 2018 RATE ADJUSTMENT - Negotiated Regional Center Rates"]
["SUMMARY & CERTIFICATION SHEET "]
[]
["PROGRAM INFORMATION"]
[]
["Service Provider Name:"]
["Vendor Number:"]
["Service Code:"]
["Number of Employees:"]
[]
["Service Address:"]
[]
[]
[]
[]
["Mailing Address:"]
["(if different than service address)"]
[]
[]
[]
["CONTACT INFORMATION"]
[null,null,"Individual Responsible for Completing Worksheet:"]
["Contact Name:"]
["Contact Phone Number:"]
["Email Address:"]
["Executive Director/Owner:"]
[]
["Current Rate:",null,{"$f":"'Vendor Worksheet'!C13","v":0}]
["Proposed Rate Change:",null,{"$f":"'Vendor Worksheet'!C14","v":{"$error":"#DIV/0!"}}]
["Proposed New Rate:",null,{"$f":"'Vendor Worksheet'!C15","v":{"$error":"#DIV/0!"}}]
["Unit Type:",null,{"$f":"Daily","v":"Daily"}]
[]
["By checking the box below, I certify that the information provided to the Department is specific to payroll costs necessary to meet the requirements of the minimum wage increase effective January 1, 2018.  I additionally certify to the best of my knowledge and belief the information submitted is true and correct, and subject to verification by all record keeping and audit processes, procedures, and guidelines under the Lanterman Act and Title 17 of the California Code of Regulations.  "]
[]
[]
[]
[]
[]
[]
[null,null,null,"I AGREE"]
[]
["Before clicking vendor@nbrc.net, please read the certification instructions page and save your workbook using your vendor number. If the workbook is not saved prior to hitting submit, the worksheet will be transmitted as a blank. Please contact the Department if you do not receive a confirmation email after submitting the workbook.  Also, if your email is NOT Outlook, the \"SUBMIT\" button will not work. If this applies to you, please save your workbook and send as an attachment to vendor@nbrc.net using your email. "]
[]
[]
[]
[]
["Please keep a copy for your records and submit a copy to the vendoring regional center."]